[Event "Titled Tuesday Blitz October 04 Late 2022"]
[White "Erdogdu, Mert"]
[Black "Weetik, Vjacheslav"]
[WhiteFideId "6301495"]
[BlackFideId "4153472"]
[WhiteElo "2413"]
[BlackElo "2469"]
[Result "0-1"]
[Round "11"]
[TimeControl "180+1"]
[Date "2022.10.04"]
[WhiteClock "0:00:13"]
[BlackClock "0:00:07"]

1. e4 {[%clk 0:03:00]}  e5 {[%clk 0:02:55]} 2. Nf3 {[%clk 0:03:00]}  Nc6 {[%clk 0:02:55]} 3. Bc4 {[%clk 0:03:01]}  Nf6 {[%clk 0:02:55]} 4. d3 {[%clk 0:03:02]}  Be7 {[%clk 0:02:55]} 5. O-O {[%clk 0:03:02]}  O-O {[%clk 0:02:53]} 6. Re1 {[%clk 0:03:02]}  d6 {[%clk 0:02:51]} 7. a4 {[%clk 0:03:03]}  Be6 {[%clk 0:02:46]} 8. a5 {[%clk 0:03:03]}  Rb8 {[%clk 0:02:33]} 9. Nc3 {[%clk 0:03:01]}  h6 {[%clk 0:02:26]} 10. h3 {[%clk 0:02:58]}  a6 {[%clk 0:02:16]} 11. Bd2 {[%clk 0:02:48]}  Re8 {[%clk 0:02:10]} 12. Nd5 {[%clk 0:02:41]}  Bf8 {[%clk 0:02:10]} 13. b4 {[%clk 0:02:39]}  Bxd5 {[%clk 0:02:04]} 14. Bxd5 {[%clk 0:02:38]}  Nxd5 {[%clk 0:02:04]} 15. exd5 {[%clk 0:02:38]}  Ne7 {[%clk 0:02:05]} 16. c4 {[%clk 0:02:38]}  Ng6 {[%clk 0:02:04]} 17. Qb3 {[%clk 0:02:33]}  f5 {[%clk 0:01:50]} 18. Rac1 {[%clk 0:02:24]}  Qf6 {[%clk 0:01:43]} 19. c5 {[%clk 0:02:17]}  Kh8 {[%clk 0:01:43]} 20. c6 {[%clk 0:02:05]}  Qf7 {[%clk 0:01:35]} 21. cxb7 {[%clk 0:01:51]}  Rxb7 {[%clk 0:01:34]} 22. Rc6 {[%clk 0:01:51]}  Ne7 {[%clk 0:01:20]} 23. Rxa6 {[%clk 0:01:47]}  Qxd5 {[%clk 0:01:19]} 24. Qc4 {[%clk 0:01:38]}  Reb8 {[%clk 0:01:10]} 25. Nh4 {[%clk 0:01:13]}  Qb5 {[%clk 0:01:05]} 26. Qxb5 {[%clk 0:00:59]}  Rxb5 {[%clk 0:01:05]} 27. Rc1 {[%clk 0:01:00]}  g5 {[%clk 0:00:53]} 28. Nf3 {[%clk 0:00:57]}  Nd5 {[%clk 0:00:53]} 29. Rc4 {[%clk 0:00:54]}  Kg8 {[%clk 0:00:41]} 30. Ra7 {[%clk 0:00:50]}  Kf7 {[%clk 0:00:36]} 31. g3 {[%clk 0:00:50]}  Ke6 {[%clk 0:00:36]} 32. Kg2 {[%clk 0:00:50]}  Be7 {[%clk 0:00:36]} 33. Ne1 {[%clk 0:00:42]}  Bd8 {[%clk 0:00:29]} 34. Nc2 {[%clk 0:00:42]}  h5 {[%clk 0:00:24]} 35. Na3 {[%clk 0:00:40]}  R5b7 {[%clk 0:00:21]} 36. b5 {[%clk 0:00:40]}  Rxa7 {[%clk 0:00:21]} 37. a6 {[%clk 0:00:40]}  g4 {[%clk 0:00:16]} 38. hxg4 {[%clk 0:00:39]}  hxg4 {[%clk 0:00:17]} 39. Kf1 {[%clk 0:00:37]}  Kd7 {[%clk 0:00:14]} 40. Ke2 {[%clk 0:00:34]}  Ne7 {[%clk 0:00:13]} 41. Bg5 {[%clk 0:00:32]}  Nd5 {[%clk 0:00:12]} 42. Bd2 {[%clk 0:00:31]}  Raa8 {[%clk 0:00:12]} 43. Rc1 {[%clk 0:00:31]}  Ne7 {[%clk 0:00:11]} 44. Bg5 {[%clk 0:00:25]}  Nc8 {[%clk 0:00:11]} 45. Be3 {[%clk 0:00:22]}  Na7 {[%clk 0:00:10]} 46. Bxa7 {[%clk 0:00:21]}  Rxa7 {[%clk 0:00:11]} 47. Rh1 {[%clk 0:00:20]}  c6 {[%clk 0:00:12]} 48. Rh7+ {[%clk 0:00:20]}  Be7 {[%clk 0:00:12]} 49. bxc6+ {[%clk 0:00:15]}  Kxc6 {[%clk 0:00:12]} 50. Nc4 {[%clk 0:00:16]}  Rba8 {[%clk 0:00:07]} 51. Ne3 {[%clk 0:00:14]}  Bg5 {[%clk 0:00:05]} 52. Rh5 {[%clk 0:00:12]}  Bxe3 {[%clk 0:00:05]} 53. Kxe3 {[%clk 0:00:13]}  Rxa6 {[%clk 0:00:06]} 54. Rxf5 {[%clk 0:00:14]}  Rg8 {[%clk 0:00:04]} 55. Rf7 {[%clk 0:00:13]}  Kd5 {[%clk 0:00:04]} 56. Rb7 {[%clk 0:00:12]}  Raa8 {[%clk 0:00:04]} 57. Rb5+ {[%clk 0:00:12]}  Ke6 {[%clk 0:00:05]} 58. Rb4 {[%clk 0:00:12]}  Raf8 {[%clk 0:00:05]} 59. Rb7 {[%clk 0:00:12]}  Rf3+ {[%clk 0:00:06]} 60. Ke2 {[%clk 0:00:12]}  Rgf8 {[%clk 0:00:07]} 61. Rg7 {[%clk 0:00:12]}  Rxf2+ {[%clk 0:00:07]} 62. Kd1 {[%clk 0:00:13]}  Ra2 {[%clk 0:00:07]} 0-1


[Site "https://www.chess.com"]

[Event "Titled Tuesday Blitz October 04 Late 2022"]
[White "Gubajdullin, Alexei"]
[Black "Lazavik, Denis"]
[WhiteFideId "4141202"]
[BlackFideId "13515110"]
[WhiteElo "2200"]
[BlackElo "2437"]
[Result "0-1"]
[Round "11"]
[TimeControl "180+1"]
[Date "2022.10.04"]
[WhiteClock "0:00:01"]
[BlackClock "0:02:02"]

1. d4 {[%clk 0:02:55]}  f5 {[%clk 0:03:00]} 2. Nf3 {[%clk 0:02:53]}  Nf6 {[%clk 0:03:00]} 3. Bg5 {[%clk 0:02:38]}  e6 {[%clk 0:02:59]} 4. Nbd2 {[%clk 0:02:37]}  Be7 {[%clk 0:02:59]} 5. Bxf6 {[%clk 0:02:33]}  Bxf6 {[%clk 0:03:00]} 6. e4 {[%clk 0:02:33]}  O-O {[%clk 0:03:00]} 7. Bd3 {[%clk 0:02:26]}  d5 {[%clk 0:03:00]} 8. e5 {[%clk 0:02:07]}  Be7 {[%clk 0:02:59]} 9. c3 {[%clk 0:02:05]}  c5 {[%clk 0:02:58]} 10. a3 {[%clk 0:02:04]}  Nc6 {[%clk 0:02:58]} 11. b4 {[%clk 0:02:03]}  cxd4 {[%clk 0:02:52]} 12. cxd4 {[%clk 0:02:03]}  Qb6 {[%clk 0:02:52]} 13. Nb3 {[%clk 0:02:02]}  a5 {[%clk 0:02:52]} 14. b5 {[%clk 0:02:02]}  a4 {[%clk 0:02:52]} 15. bxc6 {[%clk 0:01:29]}  axb3 {[%clk 0:02:51]} 16. cxb7 {[%clk 0:01:27]}  Bxb7 {[%clk 0:02:50]} 17. a4 {[%clk 0:01:17]}  Bb4+ {[%clk 0:02:47]} 18. Kf1 {[%clk 0:01:16]}  b2 {[%clk 0:02:43]} 19. Rb1 {[%clk 0:01:16]}  Bc3 {[%clk 0:02:43]} 20. h4 {[%clk 0:01:14]}  Bxd4 {[%clk 0:02:34]} 21. h5 {[%clk 0:00:48]}  Bc3 {[%clk 0:02:29]} 22. h6 {[%clk 0:00:44]}  g6 {[%clk 0:02:28]} 23. Bb5 {[%clk 0:00:41]}  Ba6 {[%clk 0:02:27]} 24. Qd3 {[%clk 0:00:40]}  Bxb5 {[%clk 0:02:26]} 25. axb5 {[%clk 0:00:39]}  Rfc8 {[%clk 0:02:26]} 26. g4 {[%clk 0:00:36]}  fxg4 {[%clk 0:02:13]} 27. Ng5 {[%clk 0:00:19]}  Qd4 {[%clk 0:02:13]} 28. Qg3 {[%clk 0:00:10]}  Qxe5 {[%clk 0:02:06]} 29. Qxg4 {[%clk 0:00:09]}  Qf5 {[%clk 0:02:06]} 30. Qxf5 {[%clk 0:00:06]}  exf5 {[%clk 0:02:07]} 31. Ke2 {[%clk 0:00:04]}  Rab8 {[%clk 0:02:07]} 32. Kd3 {[%clk 0:00:04]}  Bf6 {[%clk 0:02:07]} 33. Ne6 {[%clk 0:00:02]}  Rxb5 {[%clk 0:02:08]} 34. Rhe1 {[%clk 0:00:01]}  Rb3+ {[%clk 0:02:06]} 35. Kd2 {[%clk 0:00:01]}  Bc3+ {[%clk 0:02:06]} 36. Kc2 {[%clk 0:00:01]}  Ra3 {[%clk 0:02:02]} 37. Re2 {[%clk 0:00:01]}  Bf6+ {[%clk 0:02:02]} 38. Kd1 {[%clk 0:00:01]}  Ra1 {[%clk 0:02:02]} 0-1


[Site "https://www.chess.com"]

[Event "Titled Tuesday Blitz October 04 Late 2022"]
[White "Harvey, Marcus R"]
[Black "Demidov, Mikhail"]
[WhiteFideId "400092"]
[BlackFideId "4197143"]
[WhiteElo "2457"]
[BlackElo "2520"]
[Result "0-1"]
[Round "11"]
[TimeControl "180+1"]
[Date "2022.10.04"]
[WhiteClock "0:00:03"]
[BlackClock "0:00:38"]

1. Nf3 {[%clk 0:03:00]}  g6 {[%clk 0:02:56]} 2. e4 {[%clk 0:02:59]}  Bg7 {[%clk 0:02:57]} 3. d4 {[%clk 0:02:59]}  d6 {[%clk 0:02:57]} 4. Bc4 {[%clk 0:02:59]}  e6 {[%clk 0:02:56]} 5. Qe2 {[%clk 0:02:58]}  a6 {[%clk 0:02:56]} 6. a4 {[%clk 0:02:57]}  b6 {[%clk 0:02:56]} 7. O-O {[%clk 0:02:56]}  h6 {[%clk 0:02:55]} 8. Re1 {[%clk 0:02:50]}  Bb7 {[%clk 0:02:55]} 9. e5 {[%clk 0:02:46]}  Ne7 {[%clk 0:02:50]} 10. Nc3 {[%clk 0:02:33]}  O-O {[%clk 0:02:44]} 11. Bf4 {[%clk 0:02:31]}  Bxf3 {[%clk 0:02:11]} 12. Qxf3 {[%clk 0:02:30]}  d5 {[%clk 0:02:11]} 13. Bf1 {[%clk 0:02:06]}  c5 {[%clk 0:02:09]} 14. Ne2 {[%clk 0:01:52]}  cxd4 {[%clk 0:02:03]} 15. Nxd4 {[%clk 0:01:51]}  Nbc6 {[%clk 0:02:03]} 16. Nxc6 {[%clk 0:01:45]}  Nxc6 {[%clk 0:02:04]} 17. c4 {[%clk 0:01:29]}  Nb4 {[%clk 0:01:49]} 18. Rad1 {[%clk 0:01:20]}  Qe7 {[%clk 0:01:43]} 19. Qa3 {[%clk 0:01:14]}  Rfc8 {[%clk 0:01:28]} 20. b3 {[%clk 0:00:44]}  dxc4 {[%clk 0:01:14]} 21. Bxc4 {[%clk 0:00:41]}  b5 {[%clk 0:01:14]} 22. Bf1 {[%clk 0:00:33]}  bxa4 {[%clk 0:01:12]} 23. Qxa4 {[%clk 0:00:22]}  Nd5 {[%clk 0:01:11]} 24. Bd2 {[%clk 0:00:20]}  Qb7 {[%clk 0:01:09]} 25. Bc4 {[%clk 0:00:19]}  Nb6 {[%clk 0:01:08]} 26. Qa2 {[%clk 0:00:17]}  Nxc4 {[%clk 0:01:08]} 27. bxc4 {[%clk 0:00:18]}  Qc6 {[%clk 0:01:06]} 28. Rc1 {[%clk 0:00:17]}  a5 {[%clk 0:01:05]} 29. Bf4 {[%clk 0:00:15]}  a4 {[%clk 0:01:02]} 30. c5 {[%clk 0:00:08]}  Ra5 {[%clk 0:01:01]} 31. Be3 {[%clk 0:00:07]}  Kh7 {[%clk 0:00:52]} 32. Rc4 {[%clk 0:00:07]}  a3 {[%clk 0:00:48]} 33. Rh4 {[%clk 0:00:06]}  Ra4 {[%clk 0:00:44]} 34. Rxa4 {[%clk 0:00:04]}  Qxa4 {[%clk 0:00:44]} 35. Rc1 {[%clk 0:00:04]}  Bxe5 {[%clk 0:00:42]} 36. Qd2 {[%clk 0:00:03]}  a2 {[%clk 0:00:38]} 0-1


[Site "https://www.chess.com"]

[Event "Titled Tuesday Blitz October 04 Late 2022"]
[White "Jegorovas, Aleksandras"]
[Black "Lewtak, Damian"]
[WhiteFideId "12801950"]
[BlackFideId "1141724"]
[WhiteElo "2247"]
[BlackElo "2329"]
[Result "0-1"]
[Round "11"]
[TimeControl "180+1"]
[Date "2022.10.04"]
[WhiteClock "0:00:02"]
[BlackClock "0:00:08"]

1. d4 {[%clk 0:03:00]}  b6 {[%clk 0:02:59]} 2. e4 {[%clk 0:02:58]}  Bb7 {[%clk 0:03:00]} 3. Bd3 {[%clk 0:02:59]}  g6 {[%clk 0:03:00]} 4. Nf3 {[%clk 0:02:59]}  Bg7 {[%clk 0:03:00]} 5. Nc3 {[%clk 0:02:57]}  d6 {[%clk 0:03:01]} 6. Bg5 {[%clk 0:02:55]}  Nd7 {[%clk 0:03:01]} 7. Qd2 {[%clk 0:02:54]}  h6 {[%clk 0:03:01]} 8. Be3 {[%clk 0:02:52]}  e5 {[%clk 0:02:59]} 9. d5 {[%clk 0:02:51]}  Ngf6 {[%clk 0:02:56]} 10. h3 {[%clk 0:02:48]}  a6 {[%clk 0:02:54]} 11. a4 {[%clk 0:02:47]}  Nc5 {[%clk 0:02:53]} 12. b4 {[%clk 0:02:42]}  Nxd3+ {[%clk 0:02:53]} 13. cxd3 {[%clk 0:02:42]}  Bc8 {[%clk 0:02:48]} 14. a5 {[%clk 0:02:39]}  b5 {[%clk 0:02:46]} 15. d4 {[%clk 0:02:34]}  Nd7 {[%clk 0:02:39]} 16. O-O {[%clk 0:02:31]}  Qe7 {[%clk 0:02:29]} 17. Rac1 {[%clk 0:02:25]}  exd4 {[%clk 0:02:24]} 18. Bxd4 {[%clk 0:02:24]}  Ne5 {[%clk 0:02:24]} 19. Nxe5 {[%clk 0:02:18]}  dxe5 {[%clk 0:02:19]} 20. Bc5 {[%clk 0:02:18]}  Qg5 {[%clk 0:02:14]} 21. Qd3 {[%clk 0:02:14]}  Bf8 {[%clk 0:02:09]} 22. Bxf8 {[%clk 0:01:43]}  Kxf8 {[%clk 0:02:05]} 23. d6 {[%clk 0:01:35]}  cxd6 {[%clk 0:02:02]} 24. Qxd6+ {[%clk 0:01:35]}  Kg7 {[%clk 0:01:59]} 25. f4 {[%clk 0:01:30]}  exf4 {[%clk 0:01:52]} 26. Rxf4 {[%clk 0:01:27]}  Be6 {[%clk 0:01:42]} 27. h4 {[%clk 0:01:17]}  Rhd8 {[%clk 0:01:36]} 28. hxg5 {[%clk 0:00:37]}  Rxd6 {[%clk 0:01:35]} 29. gxh6+ {[%clk 0:00:37]}  Kxh6 {[%clk 0:01:36]} 30. e5 {[%clk 0:00:38]}  Rc6 {[%clk 0:01:30]} 31. Kf2 {[%clk 0:00:34]}  Rac8 {[%clk 0:01:28]} 32. Rh1+ {[%clk 0:00:34]}  Kg5 {[%clk 0:01:13]} 33. Ne2 {[%clk 0:00:27]}  Rc2 {[%clk 0:01:11]} 34. Re4 {[%clk 0:00:23]}  Bg4 {[%clk 0:01:09]} 35. Re1 {[%clk 0:00:19]}  Bxe2 {[%clk 0:01:03]} 36. R1xe2 {[%clk 0:00:19]}  Kf5 {[%clk 0:01:00]} 37. Kg3 {[%clk 0:00:15]}  R8c3+ {[%clk 0:00:58]} 38. R4e3 {[%clk 0:00:14]}  Rxe2 {[%clk 0:00:52]} 39. Rxc3 {[%clk 0:00:14]}  Rxe5 {[%clk 0:00:52]} 40. Rc6 {[%clk 0:00:14]}  Re6 {[%clk 0:00:51]} 41. Rc5+ {[%clk 0:00:15]}  Ke4 {[%clk 0:00:49]} 42. Kg4 {[%clk 0:00:15]}  f5+ {[%clk 0:00:45]} 43. Kg5 {[%clk 0:00:15]}  Kd3 {[%clk 0:00:42]} 44. g4 {[%clk 0:00:15]}  fxg4 {[%clk 0:00:42]} 45. Kxg4 {[%clk 0:00:16]}  Re4+ {[%clk 0:00:34]} 46. Kg5 {[%clk 0:00:16]}  Rxb4 {[%clk 0:00:34]} 47. Rc6 {[%clk 0:00:16]}  Ra4 {[%clk 0:00:34]} 48. Rxa6 {[%clk 0:00:16]}  Kc3 {[%clk 0:00:32]} 49. Rb6 {[%clk 0:00:16]}  Kb4 {[%clk 0:00:31]} 50. a6 {[%clk 0:00:15]}  Kc5 {[%clk 0:00:30]} 51. Rxg6 {[%clk 0:00:14]}  b4 {[%clk 0:00:30]} 52. Kf4 {[%clk 0:00:13]}  b3+ {[%clk 0:00:29]} 53. Ke3 {[%clk 0:00:12]}  b2 {[%clk 0:00:26]} 54. Rg1 {[%clk 0:00:12]}  Ra1 {[%clk 0:00:25]} 55. a7 {[%clk 0:00:13]}  Rxg1 {[%clk 0:00:24]} 56. a8=Q {[%clk 0:00:13]}  b1=Q {[%clk 0:00:24]} 57. Qc8+ {[%clk 0:00:11]}  Kd5 {[%clk 0:00:23]} 58. Qd7+ {[%clk 0:00:11]}  Ke5 {[%clk 0:00:24]} 59. Qe7+ {[%clk 0:00:11]}  Kf5 {[%clk 0:00:24]} 60. Qf7+ {[%clk 0:00:11]}  Kg4 {[%clk 0:00:23]} 61. Qf4+ {[%clk 0:00:11]}  Kh5 {[%clk 0:00:22]} 62. Qe5+ {[%clk 0:00:11]}  Rg5 {[%clk 0:00:20]} 63. Qh8+ {[%clk 0:00:11]}  Kg4 {[%clk 0:00:19]} 64. Qd4+ {[%clk 0:00:11]}  Kh3 {[%clk 0:00:16]} 65. Qh8+ {[%clk 0:00:06]}  Kg2 {[%clk 0:00:09]} 66. Qa8+ {[%clk 0:00:06]}  Kg1 {[%clk 0:00:08]} 67. Qa6 {[%clk 0:00:03]}  Qc1+ {[%clk 0:00:08]} 68. Kf3 {[%clk 0:00:03]}  Rf5+ {[%clk 0:00:07]} 69. Ke4 {[%clk 0:00:03]}  Qf4+ {[%clk 0:00:07]} 70. Kd3 {[%clk 0:00:02]}  Qf1+ {[%clk 0:00:08]} 0-1


[Site "https://www.chess.com"]

[Event "Titled Tuesday Blitz October 04 Late 2022"]
[White "Maksimovic, Bojan"]
[Black "Jobava, Baadur"]
[WhiteFideId "14408120"]
[BlackFideId "13601520"]
[WhiteElo "2447"]
[BlackElo "2582"]
[Result "1-0"]
[Round "11"]
[TimeControl "180+1"]
[Date "2022.10.04"]
[WhiteClock "0:02:00"]
[BlackClock "0:00:03"]

1. e4 {[%clk 0:03:00]}  c6 {[%clk 0:02:59]} 2. Nf3 {[%clk 0:03:00]}  d5 {[%clk 0:03:00]} 3. d3 {[%clk 0:03:00]}  Bg4 {[%clk 0:02:59]} 4. h3 {[%clk 0:02:57]}  Bxf3 {[%clk 0:03:00]} 5. Qxf3 {[%clk 0:02:58]}  e6 {[%clk 0:03:00]} 6. g3 {[%clk 0:02:57]}  g6 {[%clk 0:02:59]} 7. Bg2 {[%clk 0:02:57]}  h5 {[%clk 0:03:00]} 8. e5 {[%clk 0:02:41]}  Bh6 {[%clk 0:03:00]} 9. Nd2 {[%clk 0:02:41]}  Nd7 {[%clk 0:02:59]} 10. Qe2 {[%clk 0:02:41]}  Ne7 {[%clk 0:02:58]} 11. h4 {[%clk 0:02:25]}  Nf5 {[%clk 0:02:52]} 12. Nf3 {[%clk 0:02:22]}  Bxc1 {[%clk 0:02:53]} 13. Rxc1 {[%clk 0:02:22]}  Qa5+ {[%clk 0:02:52]} 14. c3 {[%clk 0:02:23]}  Qxa2 {[%clk 0:02:53]} 15. O-O {[%clk 0:02:23]}  Qa5 {[%clk 0:02:51]} 16. Ng5 {[%clk 0:02:23]}  Qc7 {[%clk 0:02:51]} 17. d4 {[%clk 0:02:23]}  Nb6 {[%clk 0:02:38]} 18. Bh3 {[%clk 0:02:22]}  Nh6 {[%clk 0:02:36]} 19. Qf3 {[%clk 0:02:21]}  Qe7 {[%clk 0:02:36]} 20. b3 {[%clk 0:02:21]}  O-O {[%clk 0:02:32]} 21. c4 {[%clk 0:02:21]}  Kg7 {[%clk 0:02:31]} 22. c5 {[%clk 0:02:18]}  Nd7 {[%clk 0:02:32]} 23. Ra1 {[%clk 0:02:15]}  a5 {[%clk 0:02:31]} 24. Rfc1 {[%clk 0:02:13]}  Rfb8 {[%clk 0:02:25]} 25. Qc3 {[%clk 0:02:10]}  b6 {[%clk 0:01:35]} 26. cxb6 {[%clk 0:02:10]}  Rxb6 {[%clk 0:01:34]} 27. Rxa5 {[%clk 0:02:09]}  Rxa5 {[%clk 0:01:23]} 28. Qxa5 {[%clk 0:02:10]}  Rb4 {[%clk 0:01:19]} 29. Qa7 {[%clk 0:02:04]}  Ng8 {[%clk 0:01:09]} 30. Rxc6 {[%clk 0:02:01]}  Rb8 {[%clk 0:00:12]} 31. Nxe6+ {[%clk 0:02:02]}  fxe6 {[%clk 0:00:11]} 32. Bxe6 {[%clk 0:02:02]}  Rd8 {[%clk 0:00:08]} 33. Rd6 {[%clk 0:02:03]}  Kh6 {[%clk 0:00:03]} 34. Bxd7 {[%clk 0:02:00]} 1-0


[Site "https://www.chess.com"]

[Event "Titled Tuesday Blitz October 04 Late 2022"]
[White "Morefield, Jason"]
[Black "Kozak, Adam"]
[WhiteFideId "30920825"]
[BlackFideId "753246"]
[WhiteElo "2171"]
[BlackElo "2459"]
[Result "1-0"]
[Round "11"]
[TimeControl "180+1"]
[Date "2022.10.04"]
[WhiteClock "0:00:06"]
[BlackClock "0:00:01"]

1. e4 {[%clk 0:03:00]}  e5 {[%clk 0:02:54]} 2. Nf3 {[%clk 0:03:01]}  Nc6 {[%clk 0:02:55]} 3. Bb5 {[%clk 0:03:00]}  Nf6 {[%clk 0:02:52]} 4. d3 {[%clk 0:02:57]}  Bc5 {[%clk 0:02:46]} 5. Bxc6 {[%clk 0:02:53]}  dxc6 {[%clk 0:02:46]} 6. O-O {[%clk 0:02:54]}  Nd7 {[%clk 0:02:45]} 7. a3 {[%clk 0:02:46]}  O-O {[%clk 0:02:44]} 8. b4 {[%clk 0:02:45]}  Bd6 {[%clk 0:02:44]} 9. Bb2 {[%clk 0:02:45]}  a5 {[%clk 0:02:44]} 10. Qd2 {[%clk 0:02:40]}  Re8 {[%clk 0:02:42]} 11. bxa5 {[%clk 0:02:36]}  Nc5 {[%clk 0:02:38]} 12. a4 {[%clk 0:02:33]}  Bg4 {[%clk 0:02:33]} 13. Ne1 {[%clk 0:02:31]}  Be6 {[%clk 0:02:25]} 14. Qe3 {[%clk 0:02:21]}  Rxa5 {[%clk 0:02:22]} 15. Nf3 {[%clk 0:02:09]}  Nxa4 {[%clk 0:02:18]} 16. Bc3 {[%clk 0:02:03]}  Ra6 {[%clk 0:01:48]} 17. Bxe5 {[%clk 0:01:59]}  Bf8 {[%clk 0:01:48]} 18. Nc3 {[%clk 0:01:43]}  b5 {[%clk 0:01:40]} 19. Nxa4 {[%clk 0:01:42]}  bxa4 {[%clk 0:01:41]} 20. Bc3 {[%clk 0:01:37]}  f6 {[%clk 0:01:32]} 21. Nd2 {[%clk 0:01:26]}  Qa8 {[%clk 0:01:12]} 22. f4 {[%clk 0:01:21]}  Qa7 {[%clk 0:01:07]} 23. Bd4 {[%clk 0:01:00]}  c5 {[%clk 0:01:03]} 24. Bc3 {[%clk 0:01:00]}  Rd8 {[%clk 0:01:03]} 25. f5 {[%clk 0:00:57]}  Bf7 {[%clk 0:01:02]} 26. Kh1 {[%clk 0:00:53]}  c4 {[%clk 0:00:58]} 27. d4 {[%clk 0:00:48]}  a3 {[%clk 0:00:56]} 28. g4 {[%clk 0:00:41]}  h6 {[%clk 0:00:45]} 29. h4 {[%clk 0:00:38]}  a2 {[%clk 0:00:44]} 30. g5 {[%clk 0:00:31]}  Ra3 {[%clk 0:00:43]} 31. gxf6 {[%clk 0:00:25]}  gxf6 {[%clk 0:00:42]} 32. e5 {[%clk 0:00:15]}  fxe5 {[%clk 0:00:26]} 33. Rg1+ {[%clk 0:00:14]}  Kh7 {[%clk 0:00:24]} 34. Ne4 {[%clk 0:00:12]}  Qb7 {[%clk 0:00:15]} 35. Rg2 {[%clk 0:00:09]}  Qc6 {[%clk 0:00:06]} 36. dxe5 {[%clk 0:00:05]}  Bd5 {[%clk 0:00:06]} 37. Qg3 {[%clk 0:00:04]}  Kh8 {[%clk 0:00:02]} 38. e6+ {[%clk 0:00:04]}  Rxc3 {[%clk 0:00:02]} 39. Qxc3+ {[%clk 0:00:04]}  Kh7 {[%clk 0:00:02]} 40. Nf6+ {[%clk 0:00:05]}  Kh8 {[%clk 0:00:02]} 41. Nxd5+ {[%clk 0:00:05]}  Kh7 {[%clk 0:00:03]} 42. Nf6+ {[%clk 0:00:05]}  Kh8 {[%clk 0:00:03]} 43. Ne4+ {[%clk 0:00:06]}  Kh7 {[%clk 0:00:03]} 44. Qg3 {[%clk 0:00:06]}  Qxe4 {[%clk 0:00:01]} 45. Qg8# {[%clk 0:00:06]} 1-0


[Site "https://www.chess.com"]

[Event "Titled Tuesday Blitz October 04 Late 2022"]
[White "Rasulov, Vugar"]
[Black "Melkumyan, Hrant"]
[WhiteFideId "13402390"]
[BlackFideId "13302485"]
[WhiteElo "2509"]
[BlackElo "2604"]
[Result "1-0"]
[Round "11"]
[TimeControl "180+1"]
[Date "2022.10.04"]
[WhiteClock "0:00:45"]
[BlackClock "0:00:01"]

1. d4 {[%clk 0:03:00]}  Nf6 {[%clk 0:02:58]} 2. c4 {[%clk 0:02:59]}  g6 {[%clk 0:02:59]} 3. Nc3 {[%clk 0:02:59]}  Bg7 {[%clk 0:02:59]} 4. e4 {[%clk 0:02:58]}  d6 {[%clk 0:03:00]} 5. h3 {[%clk 0:02:59]}  e5 {[%clk 0:03:00]} 6. d5 {[%clk 0:02:57]}  Na6 {[%clk 0:02:59]} 7. Be3 {[%clk 0:02:58]}  Nc5 {[%clk 0:02:59]} 8. Bd3 {[%clk 0:02:58]}  Nxd3+ {[%clk 0:02:51]} 9. Qxd3 {[%clk 0:02:58]}  Nd7 {[%clk 0:02:50]} 10. Nge2 {[%clk 0:02:55]}  Nc5 {[%clk 0:02:48]} 11. Qc2 {[%clk 0:02:53]}  f5 {[%clk 0:02:47]} 12. f3 {[%clk 0:02:52]}  Bh6 {[%clk 0:02:40]} 13. Qd2 {[%clk 0:02:40]}  Bxe3 {[%clk 0:02:33]} 14. Qxe3 {[%clk 0:02:41]}  O-O {[%clk 0:02:33]} 15. O-O-O {[%clk 0:02:40]}  f4 {[%clk 0:02:25]} 16. Qd2 {[%clk 0:02:39]}  a5 {[%clk 0:02:26]} 17. h4 {[%clk 0:02:36]}  Bd7 {[%clk 0:02:21]} 18. Kb1 {[%clk 0:02:36]}  Kh8 {[%clk 0:02:21]} 19. Nc1 {[%clk 0:02:36]}  a4 {[%clk 0:02:18]} 20. Nd3 {[%clk 0:02:35]}  b6 {[%clk 0:02:17]} 21. Nb4 {[%clk 0:02:31]}  Qe8 {[%clk 0:02:10]} 22. Qe2 {[%clk 0:02:30]}  Rg8 {[%clk 0:02:09]} 23. Rdg1 {[%clk 0:02:18]}  Ra5 {[%clk 0:02:06]} 24. Nc6 {[%clk 0:02:05]}  Bxc6 {[%clk 0:02:00]} 25. dxc6 {[%clk 0:02:06]}  Qxc6 {[%clk 0:02:00]} 26. Nd5 {[%clk 0:02:05]}  Rf8 {[%clk 0:01:41]} 27. h5 {[%clk 0:01:56]}  g5 {[%clk 0:01:41]} 28. h6 {[%clk 0:01:57]}  Ne6 {[%clk 0:01:41]} 29. g3 {[%clk 0:01:53]}  fxg3 {[%clk 0:01:22]} 30. Rxg3 {[%clk 0:01:54]}  Rc5 {[%clk 0:01:23]} 31. Ne7 {[%clk 0:01:45]}  Qe8 {[%clk 0:01:17]} 32. Nf5 {[%clk 0:01:44]}  Qg6 {[%clk 0:01:16]} 33. Rhg1 {[%clk 0:01:41]}  Nd4 {[%clk 0:01:05]} 34. Qd3 {[%clk 0:01:36]}  Nxf5 {[%clk 0:00:48]} 35. Rxg5 {[%clk 0:01:36]}  Qxh6 {[%clk 0:00:48]} 36. exf5 {[%clk 0:01:30]}  Qf6 {[%clk 0:00:48]} 37. Qe4 {[%clk 0:01:24]}  Ra5 {[%clk 0:00:30]} 38. Qh4 {[%clk 0:01:06]}  Qf7 {[%clk 0:00:11]} 39. f6 {[%clk 0:01:06]}  e4 {[%clk 0:00:05]} 40. Rxa5 {[%clk 0:00:56]}  bxa5 {[%clk 0:00:02]} 41. Rg7 {[%clk 0:00:56]}  Qxg7 {[%clk 0:00:03]} 42. fxg7+ {[%clk 0:00:57]}  Kxg7 {[%clk 0:00:04]} 43. Qxe4 {[%clk 0:00:55]}  h5 {[%clk 0:00:02]} 44. Kc2 {[%clk 0:00:54]}  Rf6 {[%clk 0:00:02]} 45. Kd3 {[%clk 0:00:51]}  Kh6 {[%clk 0:00:02]} 46. Ke3 {[%clk 0:00:50]}  Rg6 {[%clk 0:00:01]} 47. Qe7 {[%clk 0:00:48]}  Rg7 {[%clk 0:00:02]} 48. Qf6+ {[%clk 0:00:48]}  Rg6 {[%clk 0:00:02]} 49. Qh8+ {[%clk 0:00:44]}  Kg5 {[%clk 0:00:02]} 50. Qd8+ {[%clk 0:00:45]}  Kf5 {[%clk 0:00:01]} 51. Qh4 {[%clk 0:00:45]} 1-0


[Site "https://www.chess.com"]